Workbook

Sheet BOQ -AREA 1
A2: EAST REGION
A3: DESCRIPTION | B3: NO.OF GUARDS /EQUIPMENT | C3: UNIT PRICE | D3: TOTAL INCL
A5: PSIRA Grade B Security Supervisor - Dog handler (Day Shift) | B5: 2 | F5: 15649.15
A6: PSIRA Grade B Security Supervisor - Dog handler (Night Shift) | B6: 2 | F6: 15831.65
A7: PSIRA Grade C Security Officers (Day Shift) | B7: 18 | F7: 14098.19
A8: PSIRA Grade C Security Officers (Night Shift) | B8: 19 | F8: 14280.69
A9: PSIRA Grade C Pipeline Patrol tactical dog-hadler (Day Shift) | B9: 6 | F9: 14098.19
A10: PSIRA Grade C Pipeline Patrol tactical dog-handler (Night Shift) | B10: 6 | F10: 14280.69
A11: Dog Handlers (Day Shift) | B11: 7 | F11: 14098.19
A12: Dog Handlers (Night Shift) | B12: 7 | F12: 14280.69
A13: Firearms :Handguns | B13: 13
A14: Firearms : Rifles | B14: 3
A15: Base Radio | B15: 0
A16: Hand Radios | B16: 21
A17: Dogs | B17: 11
A18: Guard Monitoring points | B18: 55
A19: 4x4 Double Cab (Bakkie) | B19: 3
A20: Bullet Proof vests | B20: 16
A21: ADHOC Services | B21: Provisional SUM | C21: R2,000,000.00 | D21: R2,000,000.00
A23: WEST REGION
A24: DESCRIPTION | B24: NO.OF GUARDS /EQUIPMENT | C24: UNIT PRICE | D24: TOTAL INCL
I25: =SUM(F5*17%) -> 2660.3555 | K25: =SUM(F5+I25) -> 18309.5055
A26: PSIRA Grade B Security Supervisor - Dog handler (Day Shift) | B26: 2 | I26: =SUM(F6*17%) -> 2691.3805 | K26: =SUM(F6+I26) -> 18523.0305
A27: PSIRA Grade B Security Supervisor - Dog handler (Night Shift) | B27: 2 | I27: =SUM(F7*17%) -> 2396.6923 | K27: =SUM(F7+I27) -> 16494.8823
A28: PSIRA Grade C Security Officers (Day Shift) | B28: 35 | I28: =SUM(F8*17%) -> 2427.7173 | K28: =SUM(F8+I28) -> 16708.4073
A29: PSIRA Grade C Security Officers (Night Shift) | B29: 39 | I29: =SUM(F9*17%) -> 2396.6923 | K29: =SUM(F9+I29) -> 16494.8823
A30: PSIRA Grade C Pipeline Patrol tactical Dog Handler (Day Shift) | B30: 6 | I30: =SUM(F10*17%) -> 2427.7173 | K30: =SUM(F10+I30) -> 16708.4073
A31: PSIRA Grade C Pipeline Patrol tactical Dog Handler (Night Shift) | B31: 6 | I31: =SUM(F11*17%) -> 2396.6923 | K31: =SUM(F11+I31) -> 16494.8823
A32: Dog Handlers (Day Shift) | B32: 13 | I32: =SUM(F12*17%) -> 2427.7173 | K32: =SUM(F12+I32) -> 16708.4073
A33: Dog Handlers (Night Shift) | B33: 17
A34: Firearms :Handguns | B34: 29
A35: Firearms :Rifles | B35: 3
A36: Base Radio | B36: 15
A37: Hand Radios | B37: 44
A38: Dogs | B38: 19
A39: Guard Monitoring points | B39: 110
A40: 4x4 Double Cab (Bakkie) | B40: 3
A41: Bullet Proof vests | B41: 29
A42: ADHOC Services | B42: Provisional SUM | C42: R2,000,000.00 | D42: R2,000,000.00
A43: NORTH REGION
A44: DESCRIPTION | B44: NO.OF GUARDS /EQUIPMENT | C44: UNIT PRICE | D44: TOTAL INCL
A46: PSIRA Grade B Security Supervisor - Dog handler (Day Shift) | B46: 1
A47: PSIRA Grade B Security Supervisor - Dog handler (Night Shift) | B47: 1
A48: PSIRA Grade C Security Officers (Day Shift) | B48: 22
A49: PSIRA Grade C Security Officers (Night Shift) | B49: 23
A50: PSIRA Grade C Pipeline Patrol tactical Dog Handler (Day Shift) | B50: 6
A51: PSIRA Grade C Pipeline Patrol tactical Dog Handler (Night Shift) | B51: 6
A52: Dog Handlers (Day Shift) | B52: 4
A53: Dog Handlers (Night Shift) | B53: 4
A54: Fireams : Handguns | B54: 14
A55: Firearms : Rifles | B55: 3
A56: Base Radio | B56: 0
A57: Hand Radios | B57: 27
A58: Dogs | B58: 10
A59: Guard Monitoring points | B59: 65
A60: 4x4 Double Cab (Bakkie) | B60: 3
A61: Bullet Proof vests | B61: 17
A62: ADHOC Services | B62: Provisional SUM | C62: R2,000,000.00 | D62: R2,000,000.00
A63: TOTAL cost excluding vat (Per Month) | D63: =SUM(D5:D21,D26:D42,D46:D62) -> R6,000,000.00
A64: VAT 15% | D64: =D63*15% -> R900,000.00
A65: TOTAL COST PER MONTH | D65: =D63+D64 -> R6,900,000.00
A66: TOTAL COST FOR 12 MONTHS | D66: =D65*12 -> R82,800,000.00
A67: TOTAL COST FOR 60 MONTHS | D67: =D66*12 -> R993,600,000.00
A69: Transfer the Total Cost for 60 Months to the Form Of Offer
A73: Name of Bidder:
A74: Signed by or on behalf of Bidder: | C74: Official Capacity:
A75: Date:

Sheet BOQ-AREA 2
A2: CENTRAL REGION
A3: DESCRIPTION | B3: NO.OF GUARDS /EQUIPMENT | C3: UNIT PRICE | D3: TOTAL INCL
H4: 15649.15 | J4: =SUM(H4*17%) -> 2660.3555 | L4: =SUM(H4+J4) -> 18309.5055
A5: PSIRA Grade B Security Supervisor - Dog handler (Day Shift) | B5: 1 | H5: 15831.65 | J5: =SUM(H5*17%) -> 2691.3805 | L5: =SUM(H5+J5) -> 18523.0305
A6: PSIRA Grade B Security Supervisor - Dog handler (Night Shift) | B6: 1 | H6: 14098.19 | J6: 2396.6923 | L6: 16494.8823
A7: PSIRA Grade C Security Officers (Day Shift) | B7: 39 | H7: 14280.69 | J7: 2427.7173 | L7: 16708.4073
A8: PSIRA Grade C Security Officers (Night Shift) | B8: 42 | H8: 14098.19 | J8: 2396.6923 | L8: 16494.8823
A9: PSIRA Grade C Pipeline Patrol tactical Dog Handler (Day Shift) | B9: 8 | H9: 14280.69 | J9: 2427.7173 | L9: 16708.4073
A10: PSIRA Grade C Pipeline Patrol tactical Dog Handler (Night Shift) | B10: 8 | H10: 14098.19 | J10: 2396.6923 | L10: 16494.8823
A11: Dog Handlers (Day Shift) | B11: 15 | H11: 14280.69 | J11: 2427.7173 | L11: 16708.4073
A12: Dog Handlers (Night Shift) | B12: 21
A13: Firearms : Riles | B13: 4
A14: Firearms : Handguns | B14: 33
A15: Base Radio | B15: 0
A16: Hand Radios | B16: 42
A17: Dogs | B17: 21
A18: Guard Monitoring points | B18: 115
A19: 4x4 Double Cab (Bakkie) | B19: 4
A20: Bullet Proof vests | B20: 32
A21: ADHOC Services | B21: Provisional SUM | C21: R2,000,000.00 | D21: R2,000,000.00
A22: SOUTH REGION
A23: DESCRIPTION | B23: NO.OF GUARDS /EQUIPMENT | C23: UNIT PRICE | D23: TOTAL INCL
A25: PSIRA Grade B Security Supervisor - Dog handler (Day Shift) | B25: 2
A26: PSIRA Grade B Security Supervisor - Dog handler (Night Shift) | B26: 2
A27: PSIRA Grade C Security Officers (Day Shift) | B27: 56
A28: PSIRA Grade C Security Officers (Night Shift) | B28: 55
A29: PSIRA Grade C Pipeline Patrol tactical (Day Shift) | B29: 6
A30: PSIRA Grade C Pipeline Patrol tactical (Night Shift) | B30: 6
A31: Dog Handlers (Day Shift) | B31: 14
A32: Dog Handlers (Night Shift) | B32: 14
A33: Firearms : Rifles | B33: 3
A34: Firearms : Hand-guns | B34: 41
A35: Base Radio | B35: 0
A36: Hand Radios | B36: 62
A37: Cellular phones | B37: 0
A38: Dogs | B38: 19
A39: Guard Monitoring points | B39: 75
A40: 4x4 Double Cab (Bakkie) | B40: 3
A41: Bullet Proof vests | B41: 44
A42: ADHOC Services | B42: Provisional SUM | C42: R2,000,000.00 | D42: R2,000,000.00
A44: TOTAL cost excluding vat (Per Month) | D44: =SUM(D5:D21,D25:D42) -> R4,000,000.00
A45: VAT 15% | D45: =D44*15% -> R600,000.00
A46: TOTAL COST PER MONTH | D46: =D44+D45 -> R4,600,000.00
A47: TOTAL COST FOR 12 MONTHS | D47: =D46*12 -> R55,200,000.00
A48: TOTAL COST FOR 60 MONTHS | D48: =D47*12 -> R662,400,000.00
A50: Transfer the Total Cost for 60 Months to the Form Of Offer
A53: Name of Bidder:
A54: Signed by or on behalf of Bidder: | C54: Official Capacity:
A55: Date:

Sheet EMFULENI SITES-AREA 3
A1: DESCRIPTION | B1: NO.OF GUARDS /EQUIPMENT | C1: UNIT PRICE | D1: TOTAL INCL
A3: PSIRA Grade B Security Supervisors -Day shift | B3: 4
A4: PSIRA Grade B Security Supervisors - Night shift | B4: 4
A5: PSIRA Grade C Tactical Response Officers - Day Shift | B5: 6
A6: PSIRA Grade C Tactical Response Officers - Night Shift | B6: 6
A7: PSIRA Grade C Security Officers - Day Shift | B7: 81
A8: PSIRA Grade C Security Officers - Night Shift | B8: 85
A9: PSIRA Grade C Armed Security Officers - Day Shift | B9: 9
A10: PSIRA Grade C Armed Security Officers - Night Shift | B10: 9
A11: PSIRA Grade C Dog Handlers - Day Shift | B11: 12
A12: PSIRA Grade C Dog Handlers - Night Shift | B12: 12
A13: Firearms : Handguns | B13: 6
A14: Firearms :Rifles | B14: 9
A15: Hand Radios | B15: 52
A16: Dogs | B16: 24
A17: Patrol vehicles | B17: 6
A18: Bullet Proof Vests | B18: 21
A19: ADHOC Services | B19: Provisional SUM | C19: R2,000,000.00 | D19: R2,000,000.00
A21: TOTAL cost excluding vat (Per Month) | D21: =SUM(D3:D19) -> R2,000,000.00
A22: VAT 15% | D22: =D21*15% -> R300,000.00
A23: TOTAL COST PER MONTH | D23: =D21+D22 -> R2,300,000.00
A24: TOTAL COST FOR 12 MONTHS | D24: =D23*12 -> R27,600,000.00
A25: TOTAL COST FOR 60 MONTHS | D25: =D24*12 -> R331,200,000.00
A27: Transfer the Total Cost for 60 Months to the Form Of Offer
A32: Name of Bidder:
A33: Signed by or on behalf of Bidder: | C33: Official Capacity:
A34: Date:
